bitfinex/quotes_BTCUSD_20250623
["timestamp","ask_amount","ask_price","bid_price","bid_amount"]
[1750702132732,0.58999467,103060.0,103050.0,0.003]
[1750702133228,0.55789467,103060.0,103050.0,0.003]
[1750702133428,0.02320571,103060.0,103050.0,0.003]
[1750702133913,0.00923041,103080.0,103050.0,0.38798376]
[1750702134128,0.55300132,103080.0,103060.0,0.18884]
[1750702134341,0.55300132,103080.0,103060.0,0.43520611]
[1750702134342,0.03229814,103080.0,103060.0,0.43520611]
[1750702134552,0.03229814,103080.0,103060.0,0.6642082]
[1750702134775,0.03229814,103080.0,103060.0,0.6973082]
[1750702134996,0.03429814,103080.0,103060.0,0.70701072]
[1750702135221,0.02521619,103080.0,103070.0,0.00970214]
[1750702135444,0.003,103080.0,103070.0,0.071]
[1750702135658,0.40020714,103100.0,103070.0,0.071]
[1750702135872,0.53468896,103090.0,103070.0,0.07145817]
[1750702136105,0.56698199,103090.0,103070.0,0.07145817]
[1750702136326,0.38148767,103090.0,103070.0,0.28490194]
[1750702136545,0.38148767,103090.0,103070.0,0.33540351]
[1750702136753,0.38148767,103090.0,103070.0,0.39670213]
[1750702136965,0.003,103080.0,103070.0,0.39670213]
[1750702137194,0.00919464,103090.0,103080.0,0.20402405]
[1750702137442,0.58707937,103100.0,103080.0,0.19916]
[1750702137650,0.93614785,103100.0,103080.0,0.19916]
[1750702138073,0.93614785,103100.0,103080.0,0.19716]
[1750702138290,0.92707937,103100.0,103080.0,0.19716]
[1750702138944,0.004,103090.0,103080.0,0.19716]
[1750702139366,0.02721741,103090.0,103080.0,0.19716]
[1750702139776,0.344,103090.0,103080.0,0.19716]
[1750702140232,0.34,103090.0,103080.0,0.19716]
[1750702140452,0.3495494,103090.0,103080.0,0.19716]
[1750702140653,0.3495494,103090.0,103080.0,0.34545939]
[1750702141078,0.0115494,103090.0,103080.0,0.34545939]
[1750702141317,0.3515494,103090.0,103080.0,0.33745939]
[1750702141546,0.0115494,103090.0,103080.0,0.61518536]
[1750702141780,0.002,103090.0,103080.0,0.68618536]
[1750702141986,0.002,103090.0,103080.0,0.77494279]
[1750702142455,0.002,103090.0,103080.0,0.76524225]
[1750702142682,0.002,103090.0,103080.0,0.21259939]
[1750702142898,0.002,103090.0,103080.0,0.75528638]
[1750702143125,0.002,103090.0,103080.0,0.54186059]
[1750702143381,0.53468896,103100.0,103090.0,0.0309]
[1750702143618,0.0041,103110.0,103080.0,0.1134]
[1750702143892,0.0041,103110.0,103080.0,0.19284]
[1750702143893,0.87468896,103090.0,103080.0,0.19284]
[1750702144108,0.89787049,103090.0,103080.0,0.19288]
[1750702144353,0.91474717,103090.0,103080.0,0.18892]
[1750702144592,0.91474717,103090.0,103080.0,0.001]
[1750702144825,0.94594717,103090.0,103080.0,0.001]
[1750702145065,0.96754717,103090.0,103070.0,0.18937817]
[1750702145298,0.53468896,103080.0,103070.0,0.00045817]
[1750702145517,0.55787049,103080.0,103070.0,0.00045817]
[1750702145756,0.02318153,103080.0,103070.0,0.00045817]
[1750702145977,0.55787049,103080.0,103070.0,0.00045817]
[1750702146197,0.58704549,103080.0,103070.0,0.04845817]
[1750702146669,0.58704549,103080.0,103070.0,0.23729817]
[1750702146947,0.05235653,103080.0,103070.0,0.23729817]
[1750702147387,0.02318153,103080.0,103070.0,0.67374258]
[1750702147652,0.03857692,103100.0,103090.0,0.048]
[1750702147653,0.56386096,103100.0,103090.0,0.048]
[1750702147855,0.58705202,103100.0,103090.0,0.33697939]
[1750702148071,0.943932,103100.0,103090.0,0.33697939]
[1750702148779,0.40924304,103100.0,103090.0,0.33697939]
[1750702149033,0.943932,103100.0,103090.0,0.33697939]
[1750702149928,0.943932,103100.0,103090.0,0.33897939]
[1750702150192,0.05235961,103100.0,103090.0,0.40027939]
[1750702150489,0.02318761,103100.0,103090.0,0.40027939]
[1750702150700,0.53878896,103110.0,103100.0,0.119]
[1750702150910,0.02727959,103110.0,103100.0,0.21929939]
[1750702151129,0.02727959,103110.0,103100.0,0.25948]
[1750702151819,0.0041,103110.0,103100.0,0.47187939]
[1750702152250,0.0041,103110.0,103100.0,0.68526416]
[1750702152459,0.0041,103110.0,103100.0,0.47187939]
[1750702152673,0.0041,103110.0,103100.0,0.69496329]
[1750702152905,0.0041,103110.0,103100.0,0.47187939]
[1750702153128,0.0041,103110.0,103100.0,0.21239939]
[1750702153351,0.56195049,103110.0,103100.0,0.18039939]
[1750702153585,0.02726153,103110.0,103100.0,0.18039939]
[1750702153798,0.02726153,103110.0,103100.0,0.25139939]
[1750702154269,0.56195049,103110.0,103100.0,0.10029939]
[1750702154518,0.90195049,103110.0,103090.0,0.048]
[1750702154738,0.40016153,103110.0,103090.0,0.24604]
[1750702154960,0.36726153,103110.0,103100.0,0.071]
[1750702155181,0.36726153,103110.0,103090.0,0.29833939]
[1750702155182,0.94052741,103110.0,103090.0,0.29833939]
[1750702155424,0.40583845,103110.0,103100.0,0.071]
[1750702156490,0.94052741,103110.0,103100.0,0.071]
[1750702156749,0.90195049,103110.0,103100.0,0.071]
[1750702156949,0.34,103100.0,103090.0,0.26932]
[1750702157163,0.89785049,103100.0,103090.0,0.26932]
[1750702157403,0.89785049,103100.0,103090.0,0.071]
[1750702157622,0.93085049,103100.0,103080.0,0.048]
[1750702157829,0.45979805,103100.0,103080.0,0.24624]
[1750702158046,0.53468896,103090.0,103080.0,0.24624]
[1750702158270,0.55785049,103090.0,103080.0,0.26924]
[1750702158491,0.55785049,103090.0,103080.0,0.24624]
[1750702158754,0.55285049,103090.0,103080.0,0.19824]
[1750702159022,0.02316153,103090.0,103080.0,0.26924]
[1750702159313,0.55785049,103090.0,103080.0,0.2694]
[1750702159564,0.02316153,103090.0,103080.0,0.333]
[1750702159770,0.0621596,103110.0,103100.0,0.37658642]
[1750702159771,0.0041,103110.0,103100.0,0.37658642]
[1750702159982,0.02727549,103110.0,103100.0,0.28289939]
[1750702160212,0.56196445,103110.0,103100.0,0.34713939]
[1750702160446,0.02727549,103110.0,103100.0,0.41813939]
[1750702160690,0.02727549,103110.0,103100.0,0.67572581]
[1750702160914,0.02727549,103110.0,103100.0,0.70482263]
[1750702162893,0.02727549,103110.0,103100.0,0.70682263]
[1750702163147,0.0041,103110.0,103100.0,0.70682263]
[1750702163590,0.02729548,103110.0,103100.0,0.48858503]
[1750702163818,0.02729548,103110.0,103100.0,0.70630301]
[1750702164010,0.02729548,103110.0,103100.0,0.63530338]
[1750702164258,0.02729548,103110.0,103100.0,0.41221939]
[1750702164463,0.02729548,103110.0,103100.0,0.15029939]
[1750702164677,0.02729548,103110.0,103100.0,0.34821939]
[1750702165312,0.02729548,103110.0,103100.0,0.41921939]
[1750702165731,0.02729548,103110.0,103100.0,0.34821939]
[1750702165938,0.37465286,103120.0,103100.0,0.34821939]
[1750702166118,0.37465286,103120.0,103110.0,0.071]
[1750702166346,0.37465286,103120.0,103100.0,0.34821939]
[1750702166566,0.53468896,103110.0,103100.0,0.10229939]
[1750702166825,0.53468896,103110.0,103100.0,0.19936]
[1750702167032,0.0318,103120.0,103100.0,0.071]
[1750702167239,0.53468896,103110.0,103100.0,0.26832]
[1750702167455,0.0318,103120.0,103100.0,0.41695756]
[1750702167668,0.34,103130.0,103110.0,0.42296498]
[1750702167887,0.34,103130.0,103110.0,0.71221898]
[1750702168097,0.34,103130.0,103110.0,0.67342679]
[1750702168317,0.34,103130.0,103110.0,0.68312507]
[1750702168524,0.34,103130.0,103110.0,0.68312519]
[1750702168790,0.34,103130.0,103110.0,0.69282338]
[1750702169073,0.34,103130.0,103120.0,0.048]
[1750702169285,0.34,103130.0,103120.0,0.14829939]
[1750702170150,0.87468896,103130.0,103120.0,0.14829939]
[1750702170509,0.34,103130.0,103120.0,0.14829939]
[1750702171722,0.34,103130.0,103120.0,0.21929939]
[1750702173915,0.34,103130.0,103120.0,0.21766438]
[1750702174321,0.34,103130.0,103120.0,0.29704127]
[1750702174528,0.34,103130.0,103120.0,0.32814127]
[1750702174732,0.87468896,103130.0,103120.0,0.21766438]
[1750702174935,0.87468896,103130.0,103120.0,0.14666438]
[1750702175138,0.34,103130.0,103120.0,0.21766438]
[1750702175373,0.34,103130.0,103120.0,0.41302438]
[1750702175754,0.94496047,103130.0,103120.0,0.19536]
[1750702175965,0.95402426,103130.0,103120.0,0.19536]
[1750702176203,0.97216041,103130.0,103120.0,0.26636]
[1750702176623,0.97216041,103130.0,103120.0,0.19536]
[1750702176829,0.4193353,103130.0,103120.0,0.26636]
[1750702177033,0.4193353,103130.0,103120.0,0.19536]
[1750702177246,0.4193353,103130.0,103120.0,0.19484]
[1750702177698,0.95402426,103130.0,103120.0,0.19484]
[1750702177973,0.0316,103110.0,103100.0,0.19513817]
[1750702178166,0.09352434,103110.0,103100.0,0.19513817]
[1750702178393,0.09352434,103110.0,103100.0,0.26613817]
[1750702178606,0.06192434,103110.0,103100.0,0.19513817]
[1750702178810,0.02321932,103110.0,103100.0,0.21812255]
[1750702179019,0.02321932,103110.0,103100.0,0.31238316]
[1750702179233,0.36321932,103110.0,103100.0,0.31238316]
[1750702179460,0.36321932,103110.0,103100.0,0.41268255]
[1750702179684,0.36321932,103110.0,103100.0,0.41668255]
[1750702180387,0.36321932,103110.0,103100.0,0.41868255]
[1750702181735,0.02321932,103110.0,103100.0,0.64790214]
[1750702181934,0.36321932,103110.0,103100.0,0.20029817]
[1750702182177,0.38891932,103110.0,103100.0,0.20029817]
[1750702182396,0.42762434,103110.0,103100.0,0.20029817]
[1750702182614,0.42762434,103110.0,103100.0,0.27129817]
[1750702182829,0.42762434,103110.0,103100.0,0.00645817]
[1750702183041,0.38891932,103110.0,103100.0,0.20025817]
[1750702183261,0.38891932,103110.0,103100.0,0.27125817]
[1750702183930,0.92360828,103110.0,103100.0,0.27117817]
[1750702184141,0.38891932,103110.0,103100.0,0.27117817]
[1750702184804,0.92360828,103110.0,103100.0,0.00645817]
[1750702185029,6.16255196,103110.0,103100.0,0.00645817]
[1750702185265,6.19120195,103110.0,103070.0,0.0002]
[1750702185492,0.97511511,103080.0,103070.0,0.00065834]
[1750702185699,5.97877591,103080.0,103070.0,0.00065834]
[1750702185941,5.97877591,103080.0,103070.0,0.00050132]
[1750702186143,5.34378756,103080.0,103070.0,0.00050132]
[1750702186354,5.87847652,103080.0,103070.0,0.00050132]
[1750702186742,5.8875524,103080.0,103070.0,0.00050132]
[1750702186946,5.98785915,103080.0,103070.0,0.00050132]
[1750702187397,5.97878327,103080.0,103070.0,0.00050132]
[1750702187608,5.97978327,103080.0,103070.0,0.00050132]
[1750702188127,5.9888477,103080.0,103070.0,0.00050132]
[1750702188347,5.9908477,103080.0,103070.0,0.00050132]
[1750702189015,5.98178327,103080.0,103070.0,0.00050132]
[1750702189438,5.94305712,103080.0,103070.0,0.00050132]
[1750702189699,6.04335651,103080.0,103070.0,0.00050132]
[1750702189881,6.04331799,103080.0,103070.0,0.00050132]
[1750702190348,5.9430186,103080.0,103070.0,0.00050132]
[1750702191247,5.84271921,103080.0,103070.0,0.00050132]
[1750702191646,5.9430186,103080.0,103070.0,0.00050132]
[1750702192194,5.92490535,103080.0,103070.0,0.00050132]
[1750702192820,0.3719,103060.0,103050.0,0.19204]
[1750702193039,0.90658896,103060.0,103050.0,0.19249899]
[1750702193254,0.90658896,103060.0,103050.0,0.00045899]
[1750702193461,5.89210535,103060.0,103050.0,0.00045899]
[1750702193666,5.93817432,103060.0,103050.0,0.00045899]
[1750702193867,6.0703,103060.0,103050.0,0.00045899]
[1750702194073,6.09342161,103060.0,103050.0,0.00245899]
[1750702194296,5.99399593,103060.0,103050.0,0.00245899]
[1750702194510,5.35900758,103060.0,103050.0,0.00245899]
[1750702194716,0.04606897,103060.0,103050.0,0.17972337]
[1750702194925,0.38606897,103060.0,103050.0,0.08242398]
[1750702195128,0.92075793,103060.0,103050.0,0.07942398]
[1750702195332,0.92175793,103060.0,103050.0,0.07942398]
[1750702195544,0.38706897,103060.0,103050.0,0.07942398]
[1750702195748,0.38606897,103060.0,103050.0,0.07942398]
[1750702195956,0.38606897,103060.0,103050.0,0.07842398]
[1750702196160,0.38606897,103060.0,103050.0,0.04882398]
[1750702196566,0.35688397,103060.0,103050.0,0.04882398]
[1750702196776,0.34,103060.0,103050.0,0.04882398]
[1750702197392,0.33752,103060.0,103050.0,0.04882398]
[1750702197824,0.87220896,103060.0,103050.0,0.04882398]
[1750702198466,0.33752,103060.0,103050.0,0.04882398]
[1750702199323,0.87220896,103060.0,103050.0,0.00245899]
[1750702199965,0.87220896,103060.0,103050.0,0.04882398]
[1750702200171,0.88940558,103060.0,103050.0,0.04882398]
[1750702200374,0.87220896,103060.0,103050.0,0.04882398]
[1750702200609,0.33752,103060.0,103050.0,0.04882398]
[1750702202132,0.33752,103060.0,103050.0,0.23958398]
[1750702203219,0.87220896,103060.0,103050.0,0.19321899]
[1750702203430,0.33752,103060.0,103050.0,0.19321899]
[1750702203646,0.36062964,103060.0,103050.0,0.43366452]
[1750702203868,0.02918,103070.0,103050.0,0.67892784]
[1750702204089,0.01682644,103060.0,103050.0,0.47514337]
[1750702204306,0.53468896,103060.0,103050.0,0.19297899]
[1750702204507,0.52788896,103060.0,103050.0,0.19297899]
[1750702204745,0.52788896,103060.0,103050.0,0.26297899]
[1750702204979,0.05659293,103080.0,103070.0,0.04536499]
[1750702205204,0.02311749,103080.0,103070.0,0.23592499]
[1750702205419,0.60210191,103090.0,103070.0,0.42996787]
[1750702205632,0.03823895,103090.0,103070.0,0.63037283]
[1750702205850,0.37823895,103090.0,103070.0,0.6726694]
[1750702206064,0.37823895,103090.0,103070.0,0.68237126]
[1750702206334,0.37823895,103090.0,103070.0,0.68237145]
[1750702206552,0.37823895,103090.0,103080.0,0.04436499]
[1750702206769,0.37923895,103090.0,103080.0,0.04436499]
[1750702207014,0.55880645,103090.0,103080.0,0.30938904]
[1750702207217,0.55780645,103090.0,103080.0,0.11536499]
[1750702207676,0.55780645,103090.0,103080.0,0.11636499]
[1750702208306,0.02311749,103090.0,103080.0,0.31038904]
[1750702208519,0.37822849,103100.0,103090.0,0.04436499]
[1750702208735,0.37822834,103100.0,103090.0,0.23448499]
[1750702208960,0.02314862,103100.0,103090.0,0.60948987]
[1750702209171,0.02424862,103110.0,103090.0,0.67288977]
[1750702209381,0.36424862,103110.0,103090.0,0.69228953]
[1750702209598,0.36424862,103110.0,103100.0,0.0325]
[1750702210020,0.36424862,103110.0,103100.0,0.0315]
[1750702211147,0.36424862,103110.0,103090.0,0.65054883]
[1750702211392,0.36424862,103110.0,103090.0,0.44684353]
[1750702211609,0.36424862,103110.0,103100.0,0.001]
[1750702212274,0.36424862,103110.0,103090.0,0.63904307]
[1750702212500,0.36424862,103110.0,103090.0,0.6512434]
[1750702212779,0.36424862,103110.0,103100.0,0.00969932]
[1750702212991,0.0011,103110.0,103100.0,0.48742364]
[1750702213206,0.00088255,103110.0,103100.0,0.48742364]
[1750702213412,0.00088255,103110.0,103100.0,0.55942364]
[1750702213841,0.00088255,103110.0,103100.0,0.55842364]
[1750702214116,0.00088255,103110.0,103100.0,0.59112364]
[1750702214349,0.00088255,103110.0,103100.0,0.59212364]
[1750702214551,0.00088255,103110.0,103100.0,0.59112364]
[1750702214757,0.00088255,103110.0,103100.0,0.59412364]
[1750702215172,0.00088255,103110.0,103100.0,0.59112364]
[1750702215379,0.00088255,103110.0,103100.0,0.59912364]
[1750702215591,0.00088255,103110.0,103100.0,1.14835345]
[1750702216013,0.00088255,103110.0,103100.0,0.61366449]
[1750702216227,0.00088255,103110.0,103100.0,0.5362876]
[1750702216885,0.00088255,103110.0,103100.0,0.5342876]
[1750702217098,0.00088255,103110.0,103100.0,0.5392876]
[1750702217303,0.00088255,103110.0,103100.0,1.07397656]
[1750702217955,0.0006651,103110.0,103100.0,1.07397656]
[1750702218211,0.0024349,103150.0,103140.0,0.40306171]
[1750702218420,0.0024349,103150.0,103140.0,1.30451091]
[1750702218829,0.0024349,103150.0,103140.0,0.5033611]
[1750702219041,0.0024349,103150.0,103140.0,0.60337093]
[1750702219258,0.00321745,103150.0,103140.0,0.30927617]
[1750702219478,0.00321745,103150.0,103140.0,0.68150519]
[1750702219691,0.00321745,103150.0,103140.0,0.75590009]
[1750702219898,0.00321745,103150.0,103140.0,0.75690009]
[1750702220110,0.00321745,103150.0,103140.0,0.67620528]
[1750702220323,0.00321745,103150.0,103140.0,0.67720538]
[1750702220666,0.00321745,103150.0,103140.0,0.26101883]
[1750702220719,0.00321745,103150.0,103140.0,0.18432337]
[1750702220920,0.00321745,103150.0,103140.0,0.44581883]
[1750702221081,0.00321745,103150.0,103140.0,0.44581892]
[1750702221280,0.00321745,103150.0,103140.0,0.18432337]
[1750702221516,0.00321745,103150.0,103140.0,0.43596337]
[1750702222191,0.00321745,103150.0,103140.0,0.40260337]
[1750702222423,0.00321745,103150.0,103140.0,0.47360337]
[1750702222645,0.53790641,103150.0,103140.0,0.47360337]
[1750702222850,0.53790641,103150.0,103140.0,0.40260337]
[1750702223062,0.53790641,103150.0,103140.0,0.32893899]
[1750702223270,0.90800641,103150.0,103140.0,0.19661899]
[1750702223709,0.93101352,103150.0,103140.0,0.00645899]
[1750702223923,0.93101352,103150.0,103140.0,0.19661899]
[1750702224129,0.93101352,103150.0,103140.0,0.19461899]
[1750702224328,0.93523097,103150.0,103140.0,0.19461899]
[1750702224539,0.96921352,103150.0,103140.0,0.19461899]
[1750702224748,0.96921352,103150.0,103140.0,0.19061899]
[1750702224960,0.97421352,103150.0,103140.0,0.19061899]
[1750702225588,0.97421352,103150.0,103140.0,0.00045899]
[1750702226495,0.97423834,103150.0,103140.0,0.00045899]
[1750702226975,0.43954938,103150.0,103140.0,0.00045899]
[1750702227221,0.94103834,103150.0,103140.0,0.00045899]
[1750702229578,0.40634938,103150.0,103140.0,0.00045899]
[1750702229820,1.01186449,103150.0,103140.0,0.00045899]
[1750702230036,1.01186449,103150.0,103140.0,0.30045899]
[1750702231455,1.17025311,103150.0,103140.0,0.28045899]
[1750702231692,6.01674396,103150.0,103140.0,0.28045899]
[1750702231930,0.3731,103120.0,103100.0,0.35682188]
[1750702232149,0.87468896,103110.0,103100.0,0.33919633]
[1750702232388,0.87468896,103110.0,103100.0,0.41286071]
[1750702232389,0.36303193,103110.0,103100.0,0.41286071]
[1750702232630,0.36303193,103110.0,103100.0,0.48386071]
[1750702232852,0.89772089,103110.0,103100.0,0.30418443]
[1750702233075,0.89772089,103110.0,103100.0,0.26181944]
[1750702233295,0.89772089,103110.0,103100.0,0.25981944]
[1750702233573,0.36603193,103110.0,103100.0,0.30418443]
[1750702233802,0.36603193,103110.0,103100.0,0.49817085]
[1750702234020,0.36603193,103110.0,103100.0,0.43708382]
[1750702234452,0.02603193,103110.0,103100.0,0.77224386]
[1750702234666,0.02603193,103110.0,103100.0,0.7625452]
[1750702234884,0.02603193,103110.0,103100.0,0.76314529]
[1750702235106,0.02603193,103110.0,103100.0,0.28242382]
[1750702235324,0.02603193,103110.0,103100.0,0.68380859]
[1750702235537,0.02603193,103110.0,103100.0,0.69350753]
[1750702235751,0.02603193,103110.0,103100.0,0.70308619]
[1750702235989,0.02603193,103110.0,103100.0,0.47030382]
[1750702236639,0.003,103110.0,103100.0,0.47030382]
[1750702237528,0.003,103110.0,103100.0,0.43760382]
[1750702237756,0.003,103110.0,103100.0,0.40500382]
[1750702237964,0.003,103110.0,103100.0,0.33348382]
[1750702238177,0.53768896,103110.0,103100.0,0.18881944]
[1750702239268,0.003,103110.0,103100.0,0.25981944]
[1750702239479,0.003,103110.0,103100.0,0.23318443]
[1750702239699,0.003,103110.0,103100.0,0.30418443]
[1750702240169,0.003,103110.0,103100.0,0.23318443]
[1750702240388,0.91068896,103110.0,103100.0,0.23318443]
[1750702240594,0.91068896,103110.0,103100.0,0.30418443]
[1750702240855,0.343,103110.0,103100.0,0.30418443]
[1750702241072,0.90487223,103110.0,103100.0,0.07245944]
[1750702241281,0.93627223,103110.0,103100.0,0.07245944]
[1750702242109,0.9335665,103110.0,103100.0,0.00145944]
[1750702242320,1.12526338,103110.0,103100.0,0.00145944]
[1750702242529,6.01048038,103110.0,103100.0,0.00145944]
[1750702242752,0.0637,103090.0,103060.0,0.0326]
[1750702242956,0.34,103070.0,103060.0,0.00045993]
[1750702243367,0.34,103070.0,103060.0,0.19520181]
[1750702243785,0.34,103070.0,103060.0,0.2955012]
[1750702244014,0.90488896,103100.0,103070.0,0.04436499]
[1750702244216,0.03862204,103090.0,103070.0,0.14466438]
[1750702244430,0.06177488,103090.0,103070.0,0.14266438]
[1750702244650,0.90488896,103100.0,103070.0,0.14266438]
[1750702244859,0.96485096,103100.0,103070.0,0.16766438]
[1750702245074,0.03856881,103090.0,103070.0,0.16766438]
[1750702245291,0.0617101,103090.0,103070.0,0.21366438]
[1750702245502,0.001,103090.0,103070.0,0.21366438]
[1750702246162,0.001,103090.0,103070.0,0.40474438]
[1750702246358,0.02413844,103090.0,103080.0,0.04236499]
[1750702247497,0.5588274,103090.0,103070.0,0.30044499]
[1750702247727,0.5578274,103090.0,103080.0,0.004]
[1750702247957,0.02313844,103090.0,103080.0,0.04636499]
[1750702248439,0.5578274,103090.0,103080.0,0.004]
[1750702248673,0.85533001,103090.0,103080.0,0.004]
[1750702248881,6.08054701,103090.0,103080.0,0.004]
[1750702249122,6.1269609,103090.0,103080.0,0.004]
[1750702249340,6.12696133,103090.0,103080.0,0.004]
[1750702249554,0.34,103080.0,103060.0,0.00045993]
[1750702249770,0.34,103080.0,103040.0,0.18777689]
[1750702249771,0.402,103050.0,103040.0,0.0042]
[1750702249994,5.287217,103040.0,103030.0,0.0002]
[1750702250221,5.287217,103040.0,103020.0,0.0002]
[1750702250222,0.56608896,103030.0,103020.0,0.0002]
[1750702250436,0.19340402,103030.0,103020.0,0.0002]
[1750702250650,0.75869298,103030.0,103020.0,0.0002]
[1750702250868,0.02313844,103030.0,103020.0,0.07957689]
[1750702251087,0.36313844,103040.0,103020.0,0.12194188]
[1750702251760,0.8978274,103040.0,103020.0,0.12194188]
[1750702251972,0.34,103030.0,103020.0,0.04256499]
[1750702252185,0.8978274,103030.0,103020.0,0.0002]
[1750702252399,0.36313844,103030.0,103020.0,0.0022]
[1750702252668,0.36313844,103030.0,103020.0,0.04256499]
[1750702253520,0.36313844,103030.0,103020.0,0.04456499]
[1750702253944,0.8978274,103030.0,103020.0,0.0022]
[1750702254156,0.8978274,103030.0,103020.0,0.04456499]
[1750702254388,0.8978274,103030.0,103020.0,0.0022]
[1750702254593,0.9299274,103030.0,103020.0,0.0022]
[1750702255031,0.94536046,103030.0,103020.0,0.0022]
[1750702255264,0.01543306,103030.0,103020.0,0.0022]
[1750702255483,0.5532235,103030.0,103020.0,0.0022]
[1750702255702,0.01853454,103030.0,103020.0,0.0022]
[1750702255912,0.5532235,103030.0,103020.0,0.0022]
[1750702256128,0.53468896,103030.0,103020.0,0.0022]
[1750702256339,0.52081692,103030.0,103020.0,0.0022]
[1750702256766,0.50775378,103030.0,103020.0,0.0022]
[1750702256999,0.53468896,103030.0,103020.0,0.0022]
[1750702257207,0.87468896,103030.0,103020.0,0.0022]
[1750702258302,0.34,103030.0,103020.0,0.04456499]
[1750702258926,0.53468896,103030.0,103020.0,0.04456499]
[1750702259167,0.54973807,103040.0,103020.0,0.04456499]
[1750702259375,0.53468896,103030.0,103020.0,0.04456499]
[1750702259610,0.53468896,103030.0,103020.0,0.0022]
[1750702260877,0.56889822,103030.0,103020.0,0.0022]
[1750702261099,6.90333924,103030.0,103020.0,0.0022]
[1750702261309,0.59958896,103010.0,103000.0,0.0042]
[1750702261523,5.67452716,103010.0,103000.0,0.0042]
[1750702261729,4.950117,103000.0,102990.0,0.0002]
[1750702261941,0.0649,102990.0,102980.0,0.0002]
[1750702262172,5.48480596,102990.0,102980.0,0.0002]
[1750702262375,4.885217,102990.0,102980.0,0.0002]
[1750702262596,0.53514873,102990.0,102980.0,0.0002]
[1750702262807,0.00045977,102990.0,102980.0,0.0002]
[1750702263057,0.87514873,102990.0,102980.0,0.0002]
[1750702263263,0.00045977,102990.0,102980.0,0.0002]
[1750702263487,0.00045977,102990.0,102980.0,0.14527689]
[1750702263688,0.00245977,102990.0,102980.0,0.35894127]
[1750702263917,0.00245977,102990.0,102980.0,0.27956438]
[1750702264047,0.00245977,102990.0,102980.0,0.77012445]
[1750702264247,0.00245977,102990.0,102980.0,0.7846653]
[1750702264460,0.00045977,102990.0,102980.0,0.7846653]
[1750702264668,0.00145977,102990.0,102980.0,0.7866653]
[1750702264888,0.00145977,102990.0,102980.0,1.32135426]
[1750702265074,0.00045977,102990.0,102980.0,1.32135426]
[1750702265715,0.00045977,102990.0,102980.0,1.66135426]
[1750702265934,0.00045977,102990.0,102980.0,1.65935426]
[1750702266144,0.00145977,102990.0,102980.0,1.66835426]
[1750702266565,0.00145977,102990.0,102980.0,1.59397737]
[1750702266779,0.00145977,102990.0,102980.0,1.07389554]
[1750702266989,0.00045977,102990.0,102980.0,1.2545845]
[1750702267440,0.33897977,103030.0,103020.0,0.04236499]
[1750702267684,0.36201748,103030.0,103020.0,0.52505868]
[1750702268590,0.02303771,103030.0,103020.0,0.52505868]
[1750702269016,0.02303771,103030.0,103020.0,0.679372]
[1750702269258,0.02303771,103030.0,103020.0,0.67937209]
[1750702269468,0.02303771,103030.0,103020.0,0.66966543]
[1750702269676,0.02303771,103030.0,103020.0,0.67666553]
[1750702269907,0.36303771,103030.0,103020.0,0.43962162]
[1750702270153,0.36303771,103030.0,103020.0,0.40892162]
[1750702270862,0.36303771,103030.0,103020.0,0.23690223]
[1750702271089,0.39179526,103030.0,103020.0,0.30790223]
[1750702271319,0.92648422,103030.0,103020.0,0.19445724]
[1750702271552,1.12479904,103030.0,103020.0,0.00713724]
[1750702271776,1.11939056,103030.0,103020.0,0.00713724]
[1750702272244,1.06174891,103030.0,103020.0,0.00713724]
[1750702272496,1.13887705,103030.0,103020.0,0.00713724]
[1750702272728,1.04095481,103030.0,103020.0,0.00513724]
[1750702272976,1.04095481,103030.0,103020.0,0.00013724]
[1750702273205,0.97585481,103030.0,103020.0,0.00013724]
[1750702273667,1.00585481,103030.0,103020.0,0.00013724]
[1750702273894,1.00685481,103030.0,103020.0,0.00013724]
[1750702274618,0.44116585,103030.0,103010.0,0.11336499]
[1750702274826,0.39784203,103020.0,103010.0,0.11350239]
[1750702275051,0.9555687,103020.0,103010.0,0.11350239]
[1750702275465,0.42087974,103020.0,103010.0,0.11350239]
[1750702275892,0.42087974,103020.0,103010.0,0.24650178]
[1750702276928,0.42087974,103020.0,103010.0,0.44265768]
[1750702277135,0.42087974,103020.0,103010.0,0.24850178]
[1750702277343,0.42087974,103020.0,103010.0,0.48266538]
[1750702277595,0.42087974,103020.0,103010.0,0.27880178]
[1750702277801,0.42087974,103020.0,103010.0,0.21580178]
[1750702278003,0.42087974,103020.0,103010.0,0.24740178]
[1750702278457,0.36303771,103020.0,103010.0,0.24740178]
[1750702278669,0.36303771,103020.0,103010.0,0.17640178]
[1750702278902,0.36303771,103020.0,103010.0,0.24740178]
[1750702279132,0.44016585,103020.0,103010.0,0.24740178]
[1750702279349,0.44016585,103020.0,103010.0,0.11550239]
[1750702279573,0.44016585,103020.0,103010.0,0.21580178]
[1750702279802,0.44016585,103020.0,103010.0,0.24710178]
[1750702280535,0.44016585,103020.0,103010.0,0.27800178]
[1750702280773,0.36303771,103020.0,103010.0,0.46520178]
[1750702281041,0.97485481,103020.0,103010.0,0.30270239]
[1750702281276,0.44016585,103020.0,103010.0,0.2603374]
[1750702281509,0.97485481,103020.0,103010.0,0.2603374]
[1750702281734,0.97485481,103020.0,103010.0,0.30270239]
[1750702282028,0.97485481,103020.0,103010.0,0.30470239]
[1750702282252,0.97485481,103020.0,103010.0,0.23170239]
[1750702282487,0.97485481,103020.0,103010.0,0.30270239]
[1750702282728,0.97485481,103020.0,103010.0,0.23170239]
[1750702282964,0.97485481,103020.0,103010.0,0.23470239]
[1750702283202,0.97485481,103020.0,103010.0,0.30570239]
[1750702283417,0.44016585,103020.0,103010.0,0.30570239]
[1750702283892,0.44016585,103020.0,103010.0,0.23470239]
[1750702284364,0.44016585,103020.0,103010.0,0.30570239]
[1750702285520,0.44016585,103020.0,103010.0,0.23470239]
[1750702285760,0.44016585,103020.0,103010.0,0.30570239]
[1750702286223,0.97485481,103020.0,103010.0,0.30570239]
[1750702286912,0.44016585,103020.0,103010.0,0.30570239]
[1750702287395,0.44016585,103020.0,103010.0,0.0051374]
[1750702287618,0.97485481,103020.0,103010.0,0.2632974]
[1750702288340,0.97485481,103020.0,103010.0,0.1922974]
[1750702288849,0.97485481,103020.0,103010.0,0.2632974]
[1750702289351,0.97485481,103020.0,103010.0,0.1922974]
[1750702289571,0.97485481,103020.0,103010.0,0.2632974]
[1750702290014,0.44016585,103020.0,103010.0,0.2632974]
[1750702290251,0.36303771,103020.0,103010.0,0.43646178]
[1750702290477,0.36303771,103020.0,103010.0,0.66221768]
[1750702290694,0.36303771,103020.0,103010.0,1.15502888]
[1750702290695,0.06174781,103020.0,103010.0,1.15502888]
[1750702290912,0.02303771,103020.0,103010.0,1.16956973]
[1750702291122,0.02303771,103020.0,103010.0,1.24056973]
[1750702291611,0.40774048,103040.0,103030.0,0.34092412]